bitfinex/quotes_ETHUSD_20241022
["timestamp","ask_amount","ask_price","bid_price","bid_amount"]
[1729607846579,3.79529,2634.9,2634.7,20.01]
[1729607846705,3.79529,2634.9,2634.7,20.0]
[1729607846905,3.79529,2634.9,2634.8,0.01]
[1729607847236,3.79529,2634.9,2634.7,20.0]
[1729607847237,3.79535,2634.8,2634.7,20.0]
[1729607849735,8.79535,2634.8,2634.7,20.0]
[1729607849946,5.0,2634.8,2634.7,20.0]
[1729607850672,3.79492,2635.1,2634.7,20.0]
[1729607850847,3.79515,2635.0,2634.7,20.0]
[1729607851038,3.79515,2635.0,2634.7,20.01]
[1729607851374,3.79521,2634.9,2634.7,20.0]
[1729607851538,3.79535,2634.8,2634.7,20.0]
[1729607852420,7.34535,2634.8,2634.7,20.0]
[1729607852621,11.79535,2634.8,2634.7,20.0]
[1729607852944,12.34535,2634.8,2634.7,20.0]
[1729607853318,12.34535,2634.8,2634.7,10.51125]
[1729607853518,12.34535,2634.8,2634.7,8.6135]
[1729607853754,13.84305,2634.8,2634.7,0.07463945]
[1729607854162,3.79694,2633.7,2633.3,0.02288941]
[1729607854332,3.79694,2633.7,2633.2,5.37582]
[1729607854517,5.78483511,2633.7,2632.8,0.60447604]
[1729607854723,8.11689511,2633.4,2632.8,0.01]
[1729607854952,4.31943511,2633.4,2633.0,0.01]
[1729607855134,3.79729,2633.5,2633.0,3.80792]
[1729607855335,3.79737,2633.4,2633.0,0.01]
[1729607855929,3.79737,2633.4,2632.6,0.01]
[1729607855930,3.7979,2633.1,2632.6,0.01]
[1729607856272,3.79816,2632.9,2632.5,0.01]
[1729607856436,8.11732511,2633.1,2632.7,0.01]
[1729607856641,8.11732511,2633.1,2632.9,0.01]
[1729607856642,5.0,2633.1,2632.9,0.01]
[1729607857242,5.0,2633.1,2632.9,3.80795]
[1729607857443,5.0,2633.1,2633.0,0.01]
[1729607857721,3.79757,2633.3,2633.0,0.01]
[1729607857961,3.79739,2633.4,2633.0,0.01]
[1729607858376,3.79717,2633.6,2633.0,0.01]
[1729607858521,3.0,2634.1,2633.3,0.01]
[1729607858522,8.11605511,2634.0,2633.3,0.01]
[1729607858723,8.11605511,2634.0,2633.5,0.01]
[1729607859764,3.79632,2634.2,2633.5,0.01]
[1729607860079,1.6002,2634.8,2634.3,0.01]
[1729607860364,5.39555,2634.8,2634.3,0.01]
[1729607860550,3.79549,2634.7,2634.3,0.01]
[1729607860861,3.79564,2634.6,2634.3,0.01]
[1729607861426,3.79564,2634.6,2634.0,3.80643]
[1729607861940,3.79564,2634.6,2634.0,0.01]
[1729607862265,3.79564,2634.6,2633.8,0.01]
[1729607862266,3.79617,2634.3,2633.8,0.01]
[1729607862772,3.79593,2634.4,2633.8,3.80678]
[1729607863274,3.79623,2634.2,2633.8,0.01]
[1729607863431,3.79663,2634.0,2633.6,1.6125]
[1729607863627,3.79663,2634.0,2633.3,7.59485]
[1729607863628,3.79673,2633.9,2633.4,0.01]
[1729607863855,7.5935,2633.9,2633.4,0.01]
[1729607864237,3.79673,2633.9,2633.4,0.01]
[1729607864740,3.79694,2633.7,2633.4,0.01]
[1729607865263,7.59397,2633.7,2633.4,0.01]
[1729607865477,3.79694,2633.7,2633.4,0.01]
[1729607866254,3.79694,2633.7,2633.2,3.7976]
[1729607866463,3.79694,2633.7,2633.4,0.01]
[1729607869334,3.79689,2633.8,2633.4,0.01]
[1729607870035,3.79666,2633.9,2633.4,0.01]
[1729607870340,3.79702,2633.7,2633.4,0.01]
[1729607870677,3.79708,2633.6,2633.4,0.01]
[1729607870842,3.79708,2633.6,2633.1,3.79772]
[1729607870843,3.79702,2633.7,2633.1,3.79772]
[1729607871055,3.79702,2633.7,2633.2,3.79764]
[1729607871340,3.79702,2633.7,2633.2,0.01]
[1729607871542,3.79702,2633.7,2633.4,0.01]
[1729607871778,3.7968,2633.8,2633.4,0.01]
[1729607872269,3.79696,2633.7,2633.4,0.01]
[1729607872646,7.59348,2633.9,2633.4,0.01]
[1729607872972,3.79686,2633.8,2633.4,0.01]
[1729607873135,1.5336,2634.1,2633.4,0.01]
[1729607873336,3.79679,2633.8,2633.4,0.01]
[1729607873876,3.79574,2634.6,2633.8,0.01]
[1729607874081,3.796,2634.4,2633.8,3.80665]
[1729607874264,3.79572,2634.6,2633.8,3.80665]
[1729607874265,3.79579,2634.5,2633.8,3.80665]
[1729607874471,3.79579,2634.5,2633.9,3.79665]
[1729607874671,3.79579,2634.5,2634.0,3.79649]
[1729607874971,3.79579,2634.5,2633.8,7.6033]
[1729607875180,3.79608,2634.3,2633.8,3.80665]
[1729607875480,3.0,2634.4,2633.9,3.79657]
[1729607875973,7.59177,2634.5,2633.9,3.79657]
[1729607875974,3.79507,2635.0,2634.1,4.31943511]
[1729607876144,3.79445,2635.5,2634.6,0.01]
[1729607876346,3.79445,2635.5,2634.9,3.7952]
[1729607876588,1.4833,2635.8,2634.8,3.79528]
[1729607876762,3.79463,2635.3,2634.8,3.79535]
[1729607876931,3.79453,2635.4,2634.7,3.79538]
[1729607877135,3.79453,2635.4,2634.8,3.79532]
[1729607877733,3.79431,2635.6,2634.8,3.79532]
[1729607877940,3.79455,2635.4,2634.7,3.79538]
[1729607878143,3.79475,2635.3,2634.7,3.79538]
[1729607878594,3.79562,2634.7,2634.4,19.74]
[1729607878739,3.79556,2634.7,2634.4,0.01]
[1729607879293,3.79556,2634.7,2634.2,1.5586]
[1729607879604,3.79573,2634.6,2634.2,1.5586]
[1729607880439,3.79556,2634.7,2634.2,5.3548]
[1729607880836,7.59116,2634.7,2634.2,5.3548]
[1729607881040,7.59113,2634.7,2634.2,5.3548]
[1729607881241,3.0,2634.8,2634.2,1.5586]
[1729607881481,7.59116,2634.7,2634.2,1.5586]
[1729607881686,3.79556,2634.7,2634.2,5.35481]
[1729607881841,3.79535,2634.8,2634.4,0.01]
[1729607882041,3.7953,2634.9,2634.4,0.01]
[1729607882483,3.79535,2634.8,2634.4,0.01]
[1729607882774,3.79551,2634.7,2634.4,0.01]
[1729607882975,3.79536,2634.8,2634.4,0.01]
[1729607883404,3.79443,2635.5,2634.8,0.01]
[1729607883679,3.79388,2635.9,2635.4,3.79447]
[1729607883890,3.79356,2636.1,2635.5,3.79433]
[1729607884038,7.58713,2636.1,2635.5,3.79433]
[1729607884275,3.79384,2635.9,2635.6,0.01]
[1729607884471,3.79398,2635.8,2635.6,0.01]
[1729607884698,3.79375,2636.0,2635.6,0.01]
[1729607884911,1.6031,2636.2,2635.6,0.01]
[1729607885235,3.79393,2635.8,2635.6,0.01]
[1729607885890,3.79393,2635.8,2635.3,3.7945]
[1729607885891,3.79393,2635.8,2635.4,0.01]
[1729607886093,4.31943511,2635.8,2635.0,1.6144]
[1729607886322,3.79446,2635.5,2634.9,23.5251]
[1729607886533,3.0,2635.9,2635.0,0.01]
[1729607886677,3.0,2635.9,2635.3,3.80456]
[1729607886678,3.79384,2635.9,2635.3,3.80456]
[1729607886883,3.79384,2635.9,2635.4,0.01]
[1729607887190,3.794,2635.8,2635.4,0.01]
[1729607888217,3.794,2635.8,2635.3,0.01]
[1729607888918,3.79448,2635.5,2635.1,1.5536]
[1729607889215,3.79458,2635.4,2635.1,0.01]
[1729607889419,3.79458,2635.4,2634.4,3.79587]
[1729607889420,1.5264,2635.4,2634.5,19.74]
[1729607889581,3.79463,2635.3,2634.5,19.73]
[1729607889778,3.79463,2635.3,2634.8,0.01]
[1729607889983,7.58999,2635.1,2634.5,23.5257]
[1729607890304,3.7955,2634.7,2634.4,1.6197]
[1729607890513,3.7955,2634.7,2634.2,0.79578799]
[1729607890680,4.31943511,2635.2,2634.5,0.01]
[1729607890879,4.31943511,2635.2,2634.2,0.79578799]
[1729607890880,5.32094,2635.4,2634.8,3.79533]
[1729607891107,4.31943511,2635.8,2635.0,3.80497]
[1729607891108,3.79427,2635.6,2635.0,3.80497]
[1729607891317,3.79427,2635.6,2635.0,0.01]
[1729607891523,3.79449,2635.4,2635.0,0.01]
[1729607892141,3.79449,2635.4,2634.8,1.5391]
[1729607892305,3.79465,2635.3,2635.0,0.01]
[1729607892504,3.79463,2635.3,2634.8,5.32444]
[1729607892735,3.79463,2635.3,2634.9,0.01]
[1729607892952,3.79517,2635.0,2634.6,0.01]
[1729607893242,3.79531,2634.9,2634.6,0.01]
[1729607893396,3.79502,2635.1,2634.6,0.01]
[1729607893594,3.79506,2635.0,2634.6,0.01]
[1729607893793,3.79537,2634.8,2634.6,0.01]
[1729607894247,3.79537,2634.8,2634.3,7.60198]
[1729607894450,3.79521,2634.9,2634.4,3.79591]
[1729607894741,3.79521,2634.9,2634.5,0.01]
[1729607894910,3.79542,2634.8,2634.5,0.01]
[1729607895106,5.41932,2635.1,2634.5,0.01]
[1729607895334,5.41932,2635.1,2634.5,3.80567]
[1729607895646,3.79546,2634.8,2634.6,0.01]
[1729607895850,7.59025,2635.0,2634.6,0.01]
[1729607896442,3.79524,2634.9,2634.6,0.01]
[1729607896657,3.79504,2635.1,2634.6,0.01]
[1729607897146,3.79489,2635.2,2634.6,3.80551]
[1729607897652,3.79442,2635.5,2634.9,3.79507]
[1729607898039,3.79442,2635.5,2634.8,1.5967]
[1729607898040,3.0,2635.7,2634.8,1.5967]
[1729607898252,3.0,2635.7,2634.4,19.73]
[1729607898253,3.7955,2634.7,2634.4,21.3167]
[1729607898533,3.7955,2634.7,2634.4,1.5867]
[1729607898534,7.59107,2634.7,2634.4,1.5867]
[1729607898715,3.7955,2634.7,2634.4,1.5867]
[1729607899043,3.79536,2634.8,2634.6,0.01]
[1729607899339,3.79563,2634.7,2634.0,3.79641]
[1729607899610,1.5669,2635.1,2634.5,0.01]
[1729607899971,3.79544,2634.8,2634.5,0.01]
[1729607900298,1.5578,2635.4,2634.5,0.01]
[1729607900513,1.5578,2635.7,2635.2,3.79469]
[1729607900661,3.79371,2636.0,2635.5,3.79426]
[1729607900867,3.79371,2636.0,2635.5,7.58853]
[1729607901167,5.40142,2636.2,2635.7,3.79404]
[1729607901361,5.40142,2636.2,2635.5,5.36081]
[1729607901362,3.79369,2636.0,2635.5,5.36081]
[1729607901618,3.79369,2636.0,2635.5,5.36082]
[1729607901896,3.79369,2636.0,2635.5,1.5665]
[1729607902060,3.79378,2635.9,2635.5,1.5665]
[1729607902463,3.79395,2635.8,2635.5,1.5665]
[1729607902664,3.79378,2635.9,2635.5,1.5665]
[1729607902901,3.79363,2636.0,2635.5,1.5665]
[1729607903306,3.79378,2635.9,2635.5,1.5665]
[1729607903871,3.79384,2635.9,2635.3,3.79462]
[1729607904071,4.31943511,2636.0,2635.4,0.01]
[1729607904271,3.79358,2636.1,2635.4,0.01]
[1729607904809,3.79339,2636.2,2635.4,0.01]
[1729607905110,3.7933,2636.3,2635.4,3.80437]
[1729607905269,3.79328,2636.3,2635.4,3.80437]
[1729607905609,3.79328,2636.3,2635.5,3.79426]
[1729607905823,5.40098,2636.5,2635.6,3.8042]
[1729607905974,1.6539,2636.9,2636.3,0.01]
[1729607906296,3.79275,2636.7,2636.3,0.01]
[1729607906605,3.79275,2636.7,2635.9,3.80376]
[1729607906811,3.79275,2636.7,2636.3,0.01]
[1729607907023,3.79297,2636.5,2635.8,19.73]
[1729607907337,3.79263,2636.7,2636.0,0.01]
[1729607907625,3.79258,2636.8,2636.0,3.8036]
[1729607907829,3.79262,2636.7,2636.1,0.01]
[1729607908109,3.79283,2636.6,2636.1,0.01]
[1729607908415,3.79297,2636.5,2635.8,19.74]
[1729607908621,3.7927,2636.7,2636.1,0.01]
[1729607908910,3.7927,2636.7,2635.8,19.73]
[1729607908911,3.79292,2636.5,2635.8,19.73]
[1729607909279,3.79319,2636.3,2635.9,0.01]
[1729607909480,3.79323,2636.3,2635.9,0.01]
[1729607909707,3.79265,2636.7,2635.7,1.5319]
[1729607909875,3.79327,2636.3,2635.7,1.5319]
[1729607910590,8.11272511,2636.3,2635.7,1.5319]
[1729607910777,3.79334,2636.2,2635.7,1.5319]
[1729607911178,3.79375,2636.0,2635.7,0.01]
[1729607911479,3.79375,2636.0,2635.4,19.73]
[1729607911480,3.79384,2635.9,2635.6,0.01]
[1729607911677,3.79375,2636.0,2635.4,19.73]
[1729607911919,3.79375,2636.0,2635.0,0.01]
[1729607911920,3.79377,2635.9,2635.0,0.01]
[1729607912086,3.79463,2635.4,2635.0,0.01]
[1729607912499,3.79463,2635.3,2635.0,0.01]
[1729607912717,3.79478,2635.2,2634.9,1.5832]
[1729607912925,3.79478,2635.2,2634.6,1.5932]
[1729607912926,3.79509,2635.0,2634.6,1.5932]
[1729607913074,3.79484,2635.2,2634.6,1.5932]
[1729607913075,3.79484,2635.2,2634.6,1.5832]
[1729607913426,4.86943511,2635.1,2634.5,0.01]
[1729607913590,4.86943511,2635.1,2634.3,1.5932]
[1729607913796,3.79506,2635.0,2634.1,0.80580953]
[1729607914003,3.79558,2634.7,2634.4,0.01]
[1729607914351,3.79571,2634.6,2634.4,0.01]
[1729607914524,4.34554,2634.7,2634.4,0.01]
[1729607914716,3.79537,2634.8,2634.4,0.01]
[1729607914935,3.79566,2634.6,2634.2,0.01]
[1729607915254,3.79601,2634.4,2634.0,0.01]
[1729607915423,3.79614,2634.3,2634.0,0.01]
[1729607915617,3.79601,2634.4,2634.0,0.01]
[1729607915806,3.79601,2634.4,2633.9,1.5832]
[1729607916203,3.55,2634.4,2633.6,0.01]
[1729607916535,3.79631,2634.2,2633.6,0.01]
[1729607916901,3.79607,2634.3,2633.6,0.01]
[1729607917756,3.55,2634.4,2633.6,0.01]
[1729607917757,7.59265,2634.2,2633.6,0.01]
[1729607918083,3.79631,2634.2,2633.6,0.01]
[1729607918382,3.79646,2634.1,2633.6,0.01]
[1729607918695,4.31943511,2634.2,2633.5,1.6366]
[1729607918904,4.31943511,2634.2,2633.5,0.01]
[1729607918905,0.55,2634.0,2633.5,0.01]
[1729607919061,0.55,2634.0,2632.5,5.48970753]
[1729607919062,1.5441,2633.5,2632.5,1.16027242]
[1729607919387,6.79881,2632.4,2632.3,0.59445507]
[1729607919685,4.31943511,2631.8,2631.4,0.67168115]
[1729607919990,3.01,2632.3,2631.4,0.67168115]
[1729607919991,8.11954511,2631.5,2631.4,0.67168115]
[1729607920650,8.66954511,2631.5,2631.4,0.67168115]
[1729607920893,4.31943511,2631.5,2631.4,0.67168115]
[1729607921074,8.11954511,2631.5,2631.4,0.67168115]
[1729607921662,8.66954511,2631.5,2631.4,0.67168115]
[1729607921857,8.11954511,2631.5,2631.4,0.67168115]
[1729607922303,3.79959,2631.9,2631.4,0.67168115]
[1729607922583,3.79962,2631.9,2631.4,0.68168115]
[1729607923145,6.79941,2632.0,2631.4,0.68168115]
[1729607923744,3.0,2632.0,2631.4,0.68168115]
[1729607923948,6.79943,2632.0,2631.4,0.68168115]
[1729607924159,3.79962,2631.9,2631.4,0.68168115]
[1729607924866,3.79904,2632.3,2631.7,1.6324]
[1729607925061,3.79915,2632.2,2631.7,1.6324]
[1729607925261,3.79904,2632.3,2631.7,1.6224]
[1729607925466,3.79913,2632.2,2631.7,0.01]
[1729607925670,3.79933,2632.1,2631.7,0.01]
[1729607926193,3.79933,2632.1,2631.4,2.18648115]
[1729607926413,3.79933,2632.1,2631.7,0.01]
[1729607926556,3.79933,2632.1,2631.4,2.18648115]
[1729607926557,8.61632791,2632.1,2631.4,2.18648115]
[1729607926759,8.61632791,2632.1,2631.7,0.01]
[1729607927205,3.79939,2632.0,2631.7,0.01]
[1729607927387,8.61632791,2632.1,2631.7,0.01]
[1729607927700,3.79898,2632.3,2631.7,0.01]
[1729607927861,0.55,2632.3,2631.7,0.01]
[1729607928057,3.79939,2632.0,2631.7,0.01]
[1729607928458,4.81699791,2632.1,2631.7,0.01]
[1729607928883,7.59783,2632.4,2631.7,0.01]
[1729607929083,4.81699791,2632.5,2631.8,19.73]
[1729607929406,3.79918,2632.2,2631.8,19.73]
[1729607929897,3.79888,2632.4,2631.8,19.74]
[1729607930107,4.81699791,2632.5,2631.8,21.714]
[1729607930274,1.5535,2632.9,2631.8,21.714]
[1729607930275,3.79791,2633.1,2632.1,0.01]
[1729607930465,6.42409791,2633.3,2632.1,0.01]
[1729607930466,3.79776,2633.2,2632.4,1.6078]
[1729607930662,3.79798,2633.0,2632.4,1.6078]
[1729607932004,4.81699791,2633.3,2632.8,0.01]
[1729607932162,7.59495,2633.4,2632.8,0.01]
[1729607932363,3.79754,2633.3,2632.8,0.01]
[1729607932893,3.79774,2633.2,2632.7,0.01]
[1729607933300,4.81699791,2633.3,2632.7,0.01]
[1729607933668,3.79739,2633.4,2632.7,2.743717]
[1729607934170,3.79739,2633.4,2632.8,0.01]
[1729607934396,3.79752,2633.3,2632.8,0.01]
[1729607934900,3.79759,2633.3,2632.8,0.01]
[1729607935303,3.79772,2633.2,2632.8,0.01]
[1729607935603,8.61458791,2633.3,2632.8,0.01]
[1729607935926,3.79768,2633.2,2632.8,0.01]
[1729607936207,3.79768,2633.2,2632.7,19.73]
[1729607936366,3.79796,2633.0,2632.7,19.74]
[1729607936565,3.79775,2633.2,2632.7,19.74]
[1729607937192,3.79792,2633.1,2632.7,19.74]
[1729607937387,8.61454791,2633.3,2632.7,19.74]
[1729607937611,3.79766,2633.2,2632.7,0.01]
[1729607937984,3.79797,2633.0,2632.7,0.01]
[1729607938168,3.79817,2632.9,2632.7,0.01]
[1729607938371,8.61456791,2633.3,2632.6,19.73]
[1729607938605,3.79821,2632.9,2632.6,19.73]
[1729607938921,3.79823,2632.8,2632.6,19.73]
[1729607939502,3.79819,2632.9,2632.6,19.73]
[1729607939674,3.79795,2633.0,2632.7,0.01]
[1729607940277,3.79788,2633.1,2632.7,0.01]
[1729607940583,3.79798,2633.0,2632.7,0.01]
[1729607940798,3.79788,2633.1,2632.7,0.01]
[1729607940998,3.79817,2632.9,2632.6,19.73]
[1729607941171,7.59571,2633.1,2632.7,0.01]
[1729607941511,3.7978,2633.1,2632.6,19.73]
[1729607941670,3.79805,2633.0,2632.7,0.01]
[1729607941871,8.61461791,2633.3,2632.7,0.01]
[1729607942182,7.5957,2633.1,2632.7,0.01]
[1729607942495,3.0,2633.5,2632.7,0.01]
[1729607942698,3.0,2633.5,2632.7,1.984]
[1729607942699,6.79731,2633.5,2632.7,1.984]
[1729607942876,6.79732,2633.5,2632.7,1.984]
[1729607943282,6.79732,2633.5,2632.8,19.73]
[1729607943480,3.79717,2633.6,2632.8,19.73]
[1729607943481,3.79717,2633.6,2632.9,1.5639]
[1729607943718,1.6598,2633.9,2633.1,0.01]
[1729607943719,3.79731,2633.5,2633.1,0.01]
[1729607943915,4.81699791,2633.7,2633.0,19.73]
[1729607944077,4.81699791,2633.7,2633.1,0.01]
[1729607944281,4.32423786,2633.4,2633.1,0.01]
[1729607945010,8.12160786,2633.4,2633.1,0.01]
[1729607945174,3.79756,2633.3,2633.1,0.01]
[1729607945829,8.12160786,2633.4,2633.1,0.01]
[1729607946222,3.79754,2633.3,2633.1,0.01]
[1729607946620,8.12160786,2633.4,2633.1,0.01]
[1729607947115,3.79763,2633.3,2633.1,0.01]
[1729607947287,11.91909786,2633.4,2633.1,0.01]
[1729607947495,8.12160786,2633.4,2633.1,0.01]
[1729607948622,11.91905786,2633.4,2633.1,0.01]
[1729607949345,3.79758,2633.3,2633.1,0.01]
[1729607949622,3.79758,2633.3,2632.9,1.5739]
[1729607949924,3.79758,2633.3,2633.1,0.01]
[1729607950235,3.79804,2633.0,2632.7,0.01]
[1729607950381,8.12227786,2633.0,2632.9,0.01]
[1729607950580,3.79774,2633.2,2632.9,0.01]
[1729607950828,3.79781,2633.1,2632.9,0.01]
[1729607952132,3.79781,2633.1,2632.7,0.01]
[1729607952288,3.79781,2633.1,2632.9,0.01]
[1729607952483,8.98403786,2633.9,2632.9,0.01]
[1729607952794,8.12009786,2634.5,2634.0,0.01]
[1729607952990,7.59194,2634.4,2634.0,0.01]
[1729607953203,3.79615,2634.3,2633.5,0.01]
[1729607953419,3.79643,2634.1,2633.5,0.01]
[1729607953625,4.32423786,2634.2,2633.9,0.01]
[1729607953626,8.12046786,2634.2,2633.9,0.01]
[1729607953785,3.79636,2634.1,2633.7,0.01]
[1729607953980,4.32423786,2634.2,2633.9,0.01]
[1729607954201,8.12002786,2634.5,2634.0,1.5464]
[1729607954496,4.32423786,2634.5,2634.0,1.5464]
[1729607954829,8.12009786,2634.5,2634.0,1.5464]
[1729607955119,3.79594,2634.4,2634.0,1.5464]
[1729607955323,3.79594,2634.4,2634.0,1.5564]
[1729607955529,8.12002786,2634.5,2634.0,1.5564]
[1729607956165,3.79595,2634.4,2634.0,1.5564]
[1729607956727,3.79557,2634.7,2634.2,0.01]
[1729607957022,4.32423786,2634.8,2634.2,0.01]
[1729607957338,1.5507,2635.0,2634.2,0.01]
[1729607957339,4.32423786,2634.5,2634.2,0.01]
[1729607957533,3.7956,2634.7,2634.2,0.01]
[1729607957858,4.32423786,2634.8,2634.2,0.01]
[1729607958023,8.11964786,2634.8,2634.2,19.74]
[1729607958223,3.7955,2634.7,2634.2,19.74]
[1729607958419,3.79565,2634.6,2634.2,19.74]
[1729607958626,11.91509786,2634.8,2634.2,19.74]
[1729607958844,11.91507786,2634.8,2634.2,19.74]
[1729607959160,3.79564,2634.6,2634.2,19.74]
[1729607959369,3.7955,2634.7,2634.2,19.74]
[1729607959859,3.79566,2634.6,2634.2,19.74]
[1729607962461,8.11969786,2634.8,2634.2,19.74]
[1729607962632,3.79566,2634.6,2634.2,19.74]
[1729607963972,3.79593,2634.4,2634.2,0.01]
[1729607964175,4.32423786,2634.8,2634.2,0.01]
[1729607964385,3.79585,2634.5,2634.2,0.01]
[1729607965233,3.79574,2634.6,2634.1,19.73]
[1729607965476,3.79619,2634.3,2634.2,0.01]
[1729607965833,3.79595,2634.4,2634.1,19.73]
[1729607965834,3.79621,2634.2,2634.1,19.73]
[1729607966436,3.79665,2633.9,2633.8,0.01]
[1729607967181,4.32423786,2633.9,2633.4,19.73]
[1729607967477,3.79693,2633.7,2633.6,0.01]
[1729607967830,4.32423786,2633.9,2633.4,19.73]
[1729607967831,3.79722,2633.5,2633.4,19.73]
[1729607968248,3.79722,2633.5,2633.0,0.01]
[1729607968249,3.79741,2633.4,2633.0,0.01]
[1729607968470,4.32423786,2633.6,2633.1,19.73]
[1729607968471,8.12132786,2633.6,2633.1,19.73]
[1729607968668,3.79709,2633.6,2633.1,19.73]
[1729607968945,3.79709,2633.6,2633.2,19.73]
[1729607968946,3.79747,2633.4,2633.2,19.73]
[1729607969148,3.79747,2633.4,2633.0,0.01]
[1729607969149,3.79746,2633.4,2633.1,19.73]
[1729607969451,3.7962,2634.3,2633.1,19.73]
[1729607969452,1.6582,2635.7,2633.6,0.01]
[1729607969694,3.7942,2635.6,2634.6,0.01]
[1729607969982,3.79464,2635.3,2634.7,19.74]
[1729607970345,3.79486,2635.2,2634.7,19.73]
[1729607970580,3.79464,2635.3,2634.7,19.73]
[1729607970813,3.79482,2635.2,2634.8,0.01]
[1729607971169,3.79441,2635.5,2634.7,19.73]
[1729607971368,3.79457,2635.4,2634.7,19.73]
[1729607971590,5.4523,2635.7,2634.8,0.01]
[1729607971802,1.6582,2635.7,2634.8,0.01]
[1729607973409,1.6582,2635.7,2634.7,19.73]
[1729607973410,1.638,2637.3,2636.1,1.596]
[1729607973629,3.7925,2636.8,2636.2,0.01]
[1729607973905,3.7925,2636.8,2636.1,1.596]
[1729607973906,3.79265,2636.7,2636.1,1.596]
[1729607974081,3.7925,2636.8,2636.1,1.596]
[1729607974269,5.33548,2636.7,2635.8,19.74]
[1729607974603,1.5428,2636.7,2636.0,0.01]
[1729607975115,3.7929,2636.5,2635.9,19.73]
[1729607975269,3.79289,2636.6,2635.9,19.73]
[1729607975606,3.79216,2637.1,2636.4,1.5871]
[1729607976010,3.7923,2637.0,2636.4,1.5871]
[1729607976164,3.79249,2636.8,2636.1,1.5854]
[1729607976369,3.79249,2636.8,2636.1,1.5954]
[1729607976565,3.79249,2636.8,2636.1,0.01]
[1729607976566,1.5862,2636.7,2636.1,0.01]
[1729607976807,4.5862,2636.7,2636.1,0.01]
[1729607977323,4.5862,2636.7,2635.4,4.57252124]
[1729607977324,3.0,2636.4,2635.5,21.3254]
[1729607977618,6.79307,2636.4,2635.5,1.5954]
[1729607977918,3.0,2636.2,2635.5,1.5954]
[1729607978486,3.79351,2636.1,2635.5,1.5954]
[1729607978787,6.79363,2636.0,2635.3,0.01]
[1729607979288,4.5929,2636.1,2635.3,0.01]
[1729607979701,4.5929,2636.1,2635.2,1.6299]
[1729607979702,3.7938,2635.9,2635.2,1.6299]
[1729607979907,3.79393,2635.8,2635.1,0.01]
[1729607980220,3.79393,2635.8,2635.0,19.73]
[1729607980525,3.0,2635.7,2635.1,0.01]
[1729607982280,0.55,2635.8,2635.1,0.01]
[1729607982622,4.5929,2636.1,2635.3,0.01]
[1729607982777,3.79338,2636.2,2635.3,0.01]
[1729607983215,3.79338,2636.2,2635.6,0.01]
[1729607984102,3.79348,2636.1,2635.4,1.5916]
[1729607984298,3.79348,2636.1,2635.6,0.01]
[1729607985379,3.0,2636.2,2635.6,0.01]
[1729607985791,6.79307,2636.4,2635.6,0.01]
[1729607985991,3.7932,2636.3,2635.5,19.73]
[1729607986191,3.0,2636.2,2635.6,0.01]
[1729607986490,6.79337,2636.2,2635.6,0.01]
[1729607986945,3.79349,2636.1,2635.6,0.01]
[1729607987290,6.79338,2636.2,2635.6,0.01]
[1729607987490,3.79349,2636.1,2635.6,0.01]
[1729607988545,4.32423786,2637.1,2635.8,0.01]
[1729607988689,3.79234,2636.9,2636.1,0.01]
[1729607989042,7.58476,2636.9,2636.1,0.01]
[1729607989225,3.79234,2636.9,2636.1,0.01]
[1729607989917,3.79277,2636.6,2636.1,0.01]
[1729607990627,3.79293,2636.5,2636.1,0.01]
[1729607990830,3.79328,2636.3,2635.9,1.6396]
[1729607991323,3.7935,2636.1,2635.9,1.6396]
[1729607991530,3.79328,2636.3,2635.9,1.6396]
[1729607991706,3.79362,2636.1,2635.9,1.6396]
[1729607992318,7.58655,2636.3,2635.9,1.6396]
[1729607992504,3.79326,2636.3,2635.9,1.6396]
[1729607992902,3.79348,2636.2,2635.9,1.6396]
[1729607993354,3.0,2636.0,2635.5,1.5393]
[1729607993669,3.79385,2635.9,2635.5,21.2693]
[1729607993870,3.79402,2635.8,2635.5,21.2693]
[1729607994952,3.79385,2635.9,2635.5,21.2693]
[1729607995155,3.79406,2635.7,2635.5,21.2693]
[1729607995353,3.7942,2635.6,2635.5,19.73]
[1729607996994,3.79456,2635.4,2635.1,1.5548]
[1729607997160,7.58916,2635.4,2635.1,21.2848]
[1729607997343,3.79456,2635.4,2635.1,21.2848]
[1729607998344,3.79464,2635.3,2635.1,21.2848]
[1729607998547,3.79393,2635.8,2634.7,1.647]
[1729607998548,3.79517,2635.0,2634.7,1.647]
[1729607998938,3.79521,2634.9,2634.7,1.647]
[1729607999272,3.79535,2634.8,2634.7,1.647]
[1729607999633,3.79522,2634.9,2634.7,1.647]
[1729608001267,3.79535,2634.8,2634.7,1.647]
[1729608001760,3.79535,2634.8,2634.7,1.637]
[1729608002068,3.79578,2634.5,2634.4,1.6551]
[1729608002273,4.32423786,2635.3,2634.6,0.01]
[1729608002581,3.79542,2634.8,2634.6,0.01]